Cogmind - Beta 11.1 @@@ ROGUE MODE // 2022.08.03 @ 01:12:50 Player: Man Suit Result: Self-destructed Performance ------------- Evolutions (3) 1500 Regions Visited (8) 1600 Robots Destroyed (47) 235 Value Destroyed (1268) 1268 Prototype IDs (28) 560 Alien Tech Used (0) 0 Bonus (241) 241 TOTAL SCORE: 5404 Bonus ------- Aligned with FarCom 300 Friendly Fire -59 Cogmind --------- Core Integrity 700/700 Matter 160/300 Energy 240/240 System Corruption 0% Temperature Cool (0) Movement Treading (152) Location -7/Factory Parts ------- > --- POWER (1) -------- Nuclear Core > --- PROPULSION (3) --- Light Treads Advanced Treads Armored Wheel > --- UTILITY (6) ------ Medium Storage Unit Structural Scanner 0b10 Alert Chip Advanced Targeting Computer Heavy Armor Plating > --- WEAPON (3) ------- Minigun Light Cannon Scythe > --- INVENTORY (10) --- Light Deuterium Engine Hardlight Generator Minigun Minigun Minigun Shock Bomb Launcher Grenade Launcher Peak State ------------ > --- POWER ------------ Nuclear Core > --- PROPULSION ------- Light Treads Advanced Treads Armored Wheel > --- UTILITY ---------- Medium Storage Unit 0b10 Alert Chip Advanced Targeting Computer Heavy Armor Plating Hardlight Generator > --- WEAPON ----------- Minigun Minigun Light Cannon > --- INVENTORY -------- Light Deuterium Engine Structural Scanner Minigun Minigun Shock Bomb Launcher Grenade Launcher Scythe [Rating: 36] Favorites ----------- Power Light Nuclear Core Engine Ion Engine Power Core Light Nuclear Core Propulsion Aluminum Leg Treads Light Treads Leg Aluminum Leg Wheel Armored Wheel Utility Targeting Computer Device Sensor Array Storage Medium Storage Unit Processor Targeting Computer Protection Heavy Armor Plating Weapon Minigun Energy Gun Field Laser Ballistic Gun Minigun Ballistic Cannon Light Cannon Launcher Grenade Launcher Special Weapon Mining Laser Impact Weapon Great Maul Slashing Weapon Mining Claw Build | -11 -10 -10 -9 -9 -9 -8 -8 -7 ------- Run | Scr Mat Min Mat Min Exi Min Mat Fac Slots Evolved 6 | . . . 2 . . . 2 2 Power . | . . . . . . . . . Propulsion 1 | . . . . . . . . 1 Utility 4 | . . . 1 . . . 2 1 Weapon 1 | . . . 1 . . . . . Parts Attached 63 | 6 12 6 6 1 3 . 25 4 Power 6 | 1 1 2 . . . . 2 . Engine 4 | 1 1 1 . . . . 1 . Core 2 | . . 1 . . . . 1 . Reactor . | . . . . . . . . . Propulsion 14 | 2 4 1 1 . 1 . 4 1 Treads 4 | . . . . . . . 4 . Leg 9 | 2 4 1 1 . 1 . . . Wheel 1 | . . . . . . . . 1 Hover . | . . . . . . . . . Flight . | . . . . . . . . . Utility 15 | 1 4 . 2 . 2 . 4 2 Device 5 | . 1 . 1 . 1 . . 2 Storage 3 | 1 1 . . . . . 1 . Processor 4 | . 2 . . . . . 2 . Hackware . | . . . . . . . . . Protection 3 | . . . 1 . 1 . 1 . Artifact . | . . . . . . . . . Weapon 28 | 2 3 3 3 1 . . 15 1 Energy Gun 4 | . . . 2 . . . 2 . Energy Cannon . | . . . . . . . . . Ballistic Gun 8 | 2 2 . . . . . 4 . Ballistic Cannon 4 | . . 1 1 . . . 2 . Launcher 5 | . 1 1 . 1 . . 2 . Special Weapon 1 | . . 1 . . . . . . Impact Weapon 2 | . . . . . . . 2 . Slashing Weapon 4 | . . . . . . . 3 1 Piercing Weapon . | . . . . . . . . . Special Melee Weapon . | . . . . . . . . . Unidentified Prototypes 3 | . . . 1 . 1 . 1 . Parts Lost . | . . . . . . . . . Power . | . . . . . . . . . Propulsion . | . . . . . . . . . Utility . | . . . . . . . . . Weapon . | . . . . . . . . . Highest Loss Streak . | . . . . . . . . . To Critical Strikes . | . . . . . . . . . Average Slot Usage (%) 96 | . 97 100 99 100 99 100 89 92 Engine 5 | . 14 5 . . . . 5 . Core 6 | . . 8 11 11 11 11 3 7 Treads 5 | . . . . . . . 15 15 Leg 17 | . 28 28 22 22 22 22 2 . Storage 1 | . 1 . . . . . 4 7 Processor 23 | . 20 28 22 22 22 22 22 15 Protection 5 | . . . 10 11 10 11 9 7 Energy Gun 4 | . . . 21 11 11 11 2 . Ballistic Gun 12 | . 28 10 . . . . 15 10 Ballistic Cannon 4 | . . . 10 11 11 11 4 7 Launcher 5 | . . 13 . 11 11 11 . . Naked Turns . | . . . . . . . . . Heaviest Build 42 | 13 13 9 20 17 17 17 42 42 Greatest Support 42 | 20 20 20 20 20 20 20 42 42 Greatest Overweight (x) 1 | . . . . . 1 . 1 . Average Overweight (x) . | . . . . . . . . . Largest Inventory Capacity 10 | 8 8 5 5 5 5 5 10 10 Average Capacity 6 | 6 5 5 5 5 5 5 7 10 Most Carried 10 | 6 7 5 5 5 5 5 10 8 Average Carried 5 | 3 4 4 4 5 5 5 6 7 Final Capacity 10 | 8 5 5 5 5 5 5 10 10 Final Carried 9 | 6 5 5 5 5 5 5 9 7 Class Distribution -------------------- 36% | Mutant 31% | Scavenger-Mutant 25% | Skirmisher 4% | Gunner Dominant Class ---------------- Scavenger-Mutant | -10/Materials Scavenger-Mutant | -10/Mines Gunner | -9/Materials Mutant | -9/Mines Mutant | -9/Exiles Skirmisher | -8/Mines Skirmisher | -8/Materials Assassin | -7/Factory Resources | -11 -10 -10 -9 -9 -9 -8 -8 -7 ----------- Run | Scr Mat Min Mat Min Exi Min Mat Fac Matter Collected 1373 | 256 232 134 . 31 . 29 691 . Remotely . | . . . . . . . . . Salvage Created 1228 | . 241 103 . 9 . 4 871 . Parts 101 | . 15 16 . 3 . 3 64 . Haulers Intercepted 2 | . . . . . . . 2 . Recyclers Shooed . | . . . . . . . . . Parts Field Recycled . | . . . . . . . . . Retrieved Matter . | . . . . . . . . . Parts Self-Destructed . | . . . . . . . . . Prevented . | . . . . . . . . . Kills | -11 -10 -10 -9 -9 -9 -8 -8 -7 ------- Run | Scr Mat Min Mat Min Exi Min Mat Fac Combat Hostiles Destroyed 42 | . 5 8 . 3 . 4 22 . Guns 18 | . 5 1 . . . . 12 . Cannons 3 | . . 1 . . . . 2 . AOE 21 | . . 6 . 3 . 4 8 . Classes Destroyed 8 | . 2 2 . . . . 4 . Tunneler 1 | . . 1 . . . . . . Hauler 2 | . . . . . . . 2 . Operator 1 | . . . . . . . 1 . Watcher 1 | . 1 . . . . . . . Swarmer 21 | . . 6 . 3 . 4 8 . Grunt 13 | . 5 2 . . . . 6 . Duelist 1 | . . . . . . . 1 . Sentry 7 | . . . . . . . 7 . Best Kill Streak 5 | . 2 4 . 3 . 4 5 . Combat Bots Only 5 | . 2 3 . 3 . 4 5 . Max Kills in Single Turn 4 | . 1 3 . 3 . 2 4 . Gunslinging . | . . . . . . . . . Exploded 4 | . . 3 . 3 . 2 4 . Melee . | . . . . . . . . . Uniques/NPCs Destroyed . | . . . . . . . . . Combat | -11 -10 -10 -9 -9 -9 -8 -8 -7 -------- Run | Scr Mat Min Mat Min Exi Min Mat Fac Damage Taken 1186 | . 371 141 . 43 . 95 536 . Core 179 | . 51 40 . . . 10 78 . Absorbed by Shields . | . . . . . . . . . Core Remaining (%) 86 | 100 . 63 . . . 97 85 . Volleys Fired 88 | . 30 11 . 1 . 4 42 . Largest 3 | . 2 2 . 1 . 1 3 . Hottest 123 | . 40 55 . 30 . 30 123 . Shots Fired 189 | . 60 16 . 1 . 4 108 . Gun 153 | . 60 5 . . . . 88 . Cannon 21 | . . 5 . . . . 16 . Launcher 15 | . . 6 . 1 . 4 4 . Special . | . . . . . . . . . Kinetic 167 | . 60 10 . . . . 97 . Thermal 7 | . . . . . . . 7 . Explosive 15 | . . 6 . 1 . 4 4 . Electromagnetic . | . . . . . . . . . Robot Hit Streak 9 | . 7 5 . . . 1 9 . Robot Miss Streak 3 | . 3 1 . 1 . 2 3 . Penetration Max . | . . . . . . . . . Secondary Targets . | . . . . . . . . . Shots Hit Robots 121 | . 42 7 . . . 1 71 . Core Hits 77 | . 16 13 . 4 . 4 40 . Critical Kills 1 | . . . . . . . 1 . Critical Parts Destroyed 2 | . 1 . . . . . 1 . Critical Strikes 3 | . 1 . . . . . 2 . Destroy 3 | . 1 . . . . . 2 . Melee Attacks 13 | . . . . . . . 12 1 Impact 10 | . . . . . . . 10 . Slashing 3 | . . . . . . . 2 1 Piercing . | . . . . . . . . . Sneak Attacks . | . . . . . . . . . Combat Hostiles . | . . . . . . . . . Follow-up Attacks . | . . . . . . . . . Damage Inflicted 2809 | . 412 397 . 82 . 250 1668 . Guns 1531 | . 412 39 . . . . 1080 . Cannons 202 | . . 33 . . . . 169 . Explosions 1076 | . . 325 . 82 . 250 419 . Melee . | . . . . . . . . . Ramming . | . . . . . . . . . Kinetic 1632 | . 412 72 . . . . 1148 . Thermal 235 | . . . . 40 . 52 143 . Explosive 942 | . . 325 . 42 . 198 377 . Electromagnetic . | . . . . . . . . . Impact . | . . . . . . . . . Slashing . | . . . . . . . . . Piercing . | . . . . . . . . . Highest Corruption . | . . . . . . . . . Average Corruption . | . . . . . . . . . Corruption Purged . | . . . . . . . . . Corruption Blocked . | . . . . . . . . . Overload Shots . | . . . . . . . . . Overflow Damage 29 | . . . . . . 16 13 . Projectiles . | . . . . . . . . . Explosions 29 | . . . . . . 16 13 . Melee . | . . . . . . . . . Knockbacks 1 | . . . . . . . 1 . Impact . | . . . . . . . . . Kinetic 1 | . . . . . . . 1 . Secondary . | . . . . . . . . . Self-Inflicted Damage 183 | . . . . 43 . 70 70 . Shots 7 | . . . . 2 . 3 2 . Rammed . | . . . . . . . . . Targets Rammed . | . . . . . . . . . Kicked . | . . . . . . . . . Crushed . | . . . . . . . . . Highest Temperature 263 | . 31 49 . 9 . . 263 . Average Temperature 63 | . 12 23 . 7 . . 77 . Received Heat Transfer 513 | . 225 45 . . . . 243 . Effects 4 | . . . . . . . 4 . Energy Bleed 1 | . . . . . . . 1 . Interference 3 | . . . . . . . 3 . Siege Activations . | . . . . . . . . . Robots Corrupted . | . . . . . . . . . Combat Hostiles . | . . . . . . . . . Parts Fried . | . . . . . . . . . Impact Corruptions . | . . . . . . . . . Robots Melted . | . . . . . . . . . Combat Hostiles . | . . . . . . . . . Parts Melted 1 | . . . . 1 . . . . Heat Transferred 422 | . . . . 50 . 100 272 . Parts Sabotaged . | . . . . . . . . . Parts Stolen . | . . . . . . . . . Parts Stripped . | . . . . . . . . . Power Chain Reactions . | . . . . . . . . . Missiles Intercepted . | . . . . . . . . . Alert | -11 -10 -10 -9 -9 -9 -8 -8 -7 ------- Run | Scr Mat Min Mat Min Exi Min Mat Fac Peak Influence 381 | . 202 381 51 241 . 139 203 86 Initial 73 | . . 12 11 19 . . . 73 Average 104 | . 55 191 32 169 . 118 78 79 Maximum Alert Level 1 | . 1 1 . 1 . . 1 . Low Security (%) 87 | 100 97 65 100 32 . 100 93 100 Level 1 12 | . 2 34 . 67 . . 6 . Level 2 . | . . . . . . . . . Level 3 . | . . . . . . . . . Level 4 . | . . . . . . . . . Level 5 . | . . . . . . . . . High Security . | . . . . . . . . . Max Security . | . . . . . . . . . Squads Dispatched 1 | . 1 . . . . . . . Investigation 1 | . 1 . . . . . . . Extermination . | . . . . . . . . . Reinforcement . | . . . . . . . . . Assault . | . . . . . . . . . Garrison . | . . . . . . . . . Intercept . | . . . . . . . . . Searches Triggered . | . . . . . . . . . Construction Impeded . | . . . . . . . . . Haulers Reinforced . | . . . . . . . . . Active Scanning Responses . | . . . . . . . . . Cargo Convoy Interrupts . | . . . . . . . . . Stealth | -11 -10 -10 -9 -9 -9 -8 -8 -7 --------- Run | Scr Mat Min Mat Min Exi Min Mat Fac Distress Signals 7 | . . . . . . . 7 . Communications Jammed . | . . . . . . . . . Distress Signals . | . . . . . . . . . Times Spotted 59 | . 11 7 . 3 . 4 34 . Peak Tracking Total 7 | . 3 3 . 3 . 4 7 . Tactical Retreats 2 | . . . . . . . 2 . Traps | -11 -10 -10 -9 -9 -9 -8 -8 -7 ------- Run | Scr Mat Min Mat Min Exi Min Mat Fac Traps Triggered . | . . . . . . . . . Indirectly . | . . . . . . . . . Trap Hack Attempts . | . . . . . . . . . Triggered . | . . . . . . . . . Disarmed . | . . . . . . . . . Reprogrammed . | . . . . . . . . . Reused . | . . . . . . . . . Traps Extracted . | . . . . . . . . . Installed . | . . . . . . . . . Triggered . | . . . . . . . . . Machines | -11 -10 -10 -9 -9 -9 -8 -8 -7 ---------- Run | Scr Mat Min Mat Min Exi Min Mat Fac Machines Disabled 11 | . . 3 . 4 . 2 2 . Max in Single Turn 4 | . . 2 . 4 . 2 1 . Machines Sabotaged . | . . . . . . . . . Garrisons Compromised . | . . . . . . . . . Overloaded Fab Kills . | . . . . . . . . . Hacking | -11 -10 -10 -9 -9 -9 -8 -8 -7 --------- Run | Scr Mat Min Mat Min Exi Min Mat Fac Machines Accessed 19 | . 6 1 2 . 1 . 8 1 Terminals 18 | . 6 1 2 . . . 8 1 Fabricators . | . . . . . . . . . Repair Stations . | . . . . . . . . . Recycling Units . | . . . . . . . . . Scanalyzers . | . . . . . . . . . Garrison Access . | . . . . . . . . . Total Hacks 65 | . 21 5 5 . 1 . 30 3 Successful 37 | . 15 . 3 . 1 . 17 1 Failed 26 | . 5 5 2 . . . 12 2 Catastrophic 4 | . . 1 . . . . 2 1 Database Lockouts 2 | . 1 . . . . . 1 . Manual 50 | . 15 5 2 . 1 . 26 1 Terminals 64 | . 21 5 5 . . . 30 3 Fabricators . | . . . . . . . . . Repair Stations . | . . . . . . . . . Recycling Units . | . . . . . . . . . Scanalyzers . | . . . . . . . . . Garrison Access . | . . . . . . . . . Terminal Hacks 30 | . 14 . 2 . 1 . 13 . Record 1 | . 1 . . . . . . . Part Schematic 1 | . . . . . . . 1 . Robot Analysis 2 | . 1 . . . . . 1 . Prototype ID Bank 2 | . 2 . . . . . . . Level Access Points 1 | . . . . . . . 1 . Branch Access Points 1 | . . . . . . . 1 . Alert Level 2 | . 2 . . . . . . . Unreport Threat 2 | . 1 . . . . . 1 . Locate Traps 8 | . 3 . 1 . . . 4 . Maintenance Status 1 | . 1 . . . . . . . Hauler Manifests 1 | . 1 . . . . . . . Zone Layout 7 | . 2 . 1 . . . 4 . EX-Prototype ID Bank 1 | . . . . . 1 . . . Fabricator Hacks . | . . . . . . . . . Repair Station Hacks . | . . . . . . . . . Recycling Unit Hacks . | . . . . . . . . . Scanalyzer . | . . . . . . . . . Garrison Access Hacks . | . . . . . . . . . Unauthorized Hacks 7 | . 1 . 1 . . . 4 1 Terminals 7 | . 1 . 1 . . . 4 1 Assimilate 1 | . . . . . . . 1 . Botnet 6 | . 1 . 1 . . . 3 1 Fabricators . | . . . . . . . . . Repair Stations . | . . . . . . . . . Recycling Units . | . . . . . . . . . Scanalyzers . | . . . . . . . . . Garrison Access . | . . . . . . . . . Data Cores Recovered . | . . . . . . . . . Used . | . . . . . . . . . Hacking Detections 17 | . 6 1 2 . . . 7 1 Full Trace Events 1 | . 1 . . . . . . . Feedback Events . | . . . . . . . . . Feedback Blocked . | . . . . . . . . . Robot Schematics Acquired . | . . . . . . . . . Robots Built . | . . . . . . . . . Authchips . | . . . . . . . . . Time . | . . . . . . . . . Total Robot Build Rating . | . . . . . . . . . Part Schematics Acquired 1 | . . . . . . . 1 . Parts Built . | . . . . . . . . . Authchips . | . . . . . . . . . Time . | . . . . . . . . . Total Part Build Rating . | . . . . . . . . . Parts Repaired . | . . . . . . . . . Time . | . . . . . . . . . Parts Recycled . | . . . . . . . . . Recycled Matter . | . . . . . . . . . Retrieved Matter . | . . . . . . . . . Retrieved Components . | . . . . . . . . . Parts Scanalyzed . | . . . . . . . . . Part Schematics Acquired . | . . . . . . . . . Parts Damaged . | . . . . . . . . . Bothacking | -11 -10 -10 -9 -9 -9 -8 -8 -7 ------------ Run | Scr Mat Min Mat Min Exi Min Mat Fac Used RIF Installer . | . . . . . . . . . Robots Hacked . | . . . . . . . . . Non-combat . | . . . . . . . . . Combat . | . . . . . . . . . Robot Hacks Applied . | . . . . . . . . . Relay Couplers Released . | . . . . . . . . . Fabnet Peak Effective % . | . . . . . . . . . Robots Rewired . | . . . . . . . . . Allies Hacked . | . . . . . . . . . Hacks Repelled . | . . . . . . . . . Allies | -11 -10 -10 -9 -9 -9 -8 -8 -7 -------- Run | Scr Mat Min Mat Min Exi Min Mat Fac Total Allies 4 | . . 3 . . . . 1 . Largest Group 3 | . . 3 2 2 2 . 1 . Highest-Rated Group 81 | . . 81 50 50 50 . 10 . Highest-Rated Ally 31 | . . 31 31 31 31 . 10 . Total Orders . | . . . . . . . . . Ally Attacks . | . . . . . . . . . Total Damage . | . . . . . . . . . Kills . | . . . . . . . . . Allies Corrupted . | . . . . . . . . . Allies Melted . | . . . . . . . . . Intel | -11 -10 -10 -9 -9 -9 -8 -8 -7 ------- Run | Scr Mat Min Mat Min Exi Min Mat Fac Robot Analysis Total 2 | . 1 . . . . . 1 . Derelict Logs Recovered 2 | . . 2 . . . . . . Drone Launches . | . . . . . . . . . Drone Recoveries . | . . . . . . . . . Exploration | -11 -10 -10 -9 -9 -9 -8 -8 -7 ------------- Run | Scr Mat Min Mat Min Exi Min Mat Fac Turns Passed 4382 | 85 701 994 234 71 476 407 1365 49 Spaces Moved 2886 | 62 473 758 175 46 376 317 652 27 Core 5 | 5 . . . . . . . . Treads 570 | . . . . . . . 543 27 Legs 2311 | 57 473 758 175 46 376 317 109 . Wheels . | . . . . . . . . . Hover . | . . . . . . . . . Flight . | . . . . . . . . . Fastest Speed 50 | 50 120 120 120 120 120 120 120 152 Average Speed 127 | 114 120 120 120 120 120 120 152 152 Slowest Speed 240 | 120 120 120 120 120 190 120 240 152 Overloaded Moves . | . . . . . . . . . Propulsion Burnouts . | . . . . . . . . . Robots Hopped . | . . . . . . . . . Cave-ins Triggered . | . . . . . . . . . Exploration Rate (%) 48 | 5 79 100 15 15 72 71 74 2 Regions Visited 8 Branch Regions 4 Pre-discovered Areas . | . . . . . . . . . Known Exits Taken 7 | . 1 1 1 1 1 1 1 . Unknown Exits Taken 1 | 1 . . . . . . . . Scrap Searched 2 | . . 1 . . . 1 . . Spaces Dug 19 | . . . . . . . 18 1 Terrain Destroyed 154 | . . 39 . 28 . 24 62 1 Melee 12 | . . . . . . . 11 1 Projectile . | . . . . . . . . . AOE 142 | . . 39 . 28 . 24 51 . Terrain Rammed . | . . . . . . . . . Walls Destroyed . | . . . . . . . . . Machines Disabled . | . . . . . . . . . Actions | -11 -10 -10 -9 -9 -9 -8 -8 -7 --------- Run | Scr Mat Min Mat Min Exi Min Mat Fac Total 3415 | 73 558 828 197 60 400 339 928 32 Wait 304 | . 21 48 14 13 17 19 172 . Move 2878 | 61 472 757 174 45 375 316 651 27 Hop . | . . . . . . . . . Pick Up 24 | 6 6 1 1 . 1 . 9 . Fast Attach 28 | 6 5 2 3 . 3 . 9 . Attach 3 | . . . . . . . 1 2 Detach 3 | . . . . . . . 3 . Swap 32 | . 7 4 3 1 . . 15 2 Drop 42 | . 17 5 2 . 4 . 14 . Fire 88 | . 30 11 . 1 . 4 42 . Melee 13 | . . . . . . . 12 1 Ram . | . . . . . . . . . Kick . | . . . . . . . . . Crush . | . . . . . . . . . Escape Stasis . | . . . . . . . . . Rewire . | . . . . . . . . . Trap . | . . . . . . . . . Miscellaneous . | . . . . . . . . . Route ------- -11/Scrapyard -10/Materials (discovered 3 exits: *Mat x2 / *Min) -10/Mines (discovered 2 exits: *Mat x2) -9/Materials -9/Mines -9/Exiles (discovered 2 exits: *Min x2) -8/Mines -8/Materials (discovered 3 exits: *Fac x3) -7/Factory (discovered 1 exit: Sto) History --------- Turn | Location | Event 5 | -11/Scrapyard | Discovered new exit (range 15) 86 | -11/Scrapyard | Entered Materials 300 | -10/Materials | Build established: Mutant 348 | -10/Materials | Discovered new exit (range 12) 360 | -10/Materials | Identified exit to Materials 540 | -10/Materials | Discovered exit to Materials (range 15) 565 | -10/Materials | Central database locked down 726 | -10/Materials | Build established: Scavenger-Mutant 736 | -10/Materials | Discovered new exit (range 14) 782 | -10/Materials | Identified exit to Mines 787 | -10/Materials | Entered Mines 932 | -10/Mines | Learned Materials terminal intel 1099 | -10/Mines | Found a hidden stash of uninstalled traps 1142 | -10/Mines | Discovered exit to Materials (range 13) 1471 | -10/Mines | Received a Mining Laser from a helpful Derelict 1620 | -10/Mines | Discovered exit to Materials (range 11) 1781 | -10/Mines | Entered Materials 1781 | -9/Materials | Accompanied by 2 allies 1781 | -9/Materials | Evolved 2 slots: Utility x1, Weapon x1 1782 | -9/Materials | Loaded intel: 12 terminal locations 1786 | -9/Materials | Led the pair of lost Derelicts to an unsafe place 1948 | -9/Materials | Discovered new exit (range 10) 1957 | -9/Materials | Identified exit to Mines 2015 | -9/Materials | Entered Mines 2015 | -9/Mines | Accompanied by 2 allies 2032 | -9/Mines | Met a Derelict bent on vengeance 2068 | -9/Mines | Deemed a non-threat by the Exiles lab entrance 2068 | -9/Mines | Discovered new exit (range 5) 2071 | -9/Mines | Identified exit to Exiles 2086 | -9/Mines | Entered Exiles 2086 | -9/Exiles | Accompanied by 2 allies 2116 | -9/Exiles | Led the pair of lost Derelicts to a safe place 2142 | -9/Exiles | Discovered new exit (range 14) 2156 | -9/Exiles | Identified exit to Mines 2180 | -9/Exiles | Met 8R-AWN 2198 | -9/Exiles | Met EX-HEX 2295 | -9/Exiles | Met EX-DEC 2325 | -9/Exiles | Build established: Mutant 2335 | -9/Exiles | Met EX-BIN 2352 | -9/Exiles | Aligned with FarCom system 2353 | -9/Exiles | Given EX-Vault access code 2381 | -9/Exiles | Opened EX-Vault 2390 | -9/Exiles | Found Prototype Device 2390 | -9/Exiles | Identified Cloak of Protection 2425 | -9/Exiles | Found 0b10 Alert Chip 2457 | -9/Exiles | Warned to stay clear of 0b10 Research branches 2547 | -9/Exiles | Discovered exit to Mines (range 14) 2562 | -9/Exiles | Left Exiles lab with 0b10 Alert Chip 2562 | -9/Exiles | Entered Mines 2954 | -8/Mines | Discovered new exit (range 6) 2960 | -8/Mines | Identified exit to Materials 2969 | -8/Mines | Entered Materials 2969 | -8/Materials | Evolved 2 slots: Utility x2 3003 | -8/Materials | Build established: Skirmisher 3539 | -8/Materials | Central database locked down 3954 | -8/Materials | Build established: Mutant 4127 | -8/Materials | Identified exit to Factory 4334 | -8/Materials | Entered Factory 4334 | -7/Factory | Evolved 2 slots: Propulsion x1, Utility x1 4335 | -7/Factory | Identified exit to Storage 4383 | -7/Factory | Self-destructed Last Messages --------------- 04278_ U-05 Engineer lays Concrete. 04279_ U-05 Engineer builds a Wall. 04289_ K-01 Serf collects debris. 04296_ G-47 Trooper destroyed. 04312_ Acquired 29 matter. 04315_ Acquired 8 matter. 04315_ R-06 Scavenger collects Imp. Heat Sink. 04317_ Acquired 1 matter. 04319_ W-25 Informer sends out distress signal. PARAMETERS=PROPULSION+1,UTILITY+1 LOCATION=FACTORY GOAL=ESCAPE 04334_ Receiving FarCom transmissions... Loading 1 Storage entrance... 04356_ Connecting with Terminal... >>Trojan(Botnet) Trojan loaded successfully. Testing... Terminal linked with 0 systems. Awaiting botnet instructions. Map ----- +----------------------------------------------------+ | ?????????????????????????????????????????? | | ?????????????????????????????????????????? | | ?????????????????????????????????????????? | | ?????????????????????????????????????????? | | ?????????????????????????????????????????? | | ?????????????????????????????????????????? | | ?????????????????????????????????????????? | | ?????????????????????????????????????????? | | ?????????????????????????????????????????? | | ?????????????????????????????????????????? | | ??????????????????????## ????????????????? | | ??????????????????????## ????????????????? | | ??????????????????????## ????????????????? | | ??????????????????????## ????????????????? | | ??????????????????????## ????????????????? | | ??????????????????????## ######?? ??????? | | ??????????????????????## ######? ?????? | | ??????????????????????##[ ??????? | | ??????????????????????## ??????? | | ??????????????????????## ? ##??? | | ?????????????? ?????## """ """ ##??? | | ?????????## ? """"????## """ """ ##??? | | ?????????## """"????## """ """ ###??? | | ?????????## """ ???## !##???? | | ?????????## ??## ! ##???? | | ????????### ### @ ##???? | | ????????## ### ##???? | | ????????## ###### ##???? | | ????????## ??#########;######## ? ##???? | | ?????????????### ##????? ##???? | | ?????????????? # """"" ##?????###???? | | ?????????????? # ""T"" """" ##???????????? | | ?????????????? # """" ##???????????? | | ?????????????? # """" ##???????????? | | ??????????????## """" ##???????????? | | ?????????????? # """" ##???????????? | | ?????????????? # """" ##???????????? | | ?????????????? # """" ##???????????? | | ?????????????? # ##???????????? | | ?????????????? # ! ##???????????? | | ?????????????? # ###### ??????? | | ?????????????? #######+########### ??????? | | ?????????????? #### # ??????? | | ?????????????????## # ??????? | | ?????????????????## + ??????? | | ?????????????????## # ??????? | | ?????????????????## # ??????? | | ?????????????????## # ??????? | | ?????????????????## # ??????? | | ???????????????? # ??????? | +----------------------------------------------------+ Best States ------------- Heat Dissipation 34 Energy Generation 14 Energy Capacity 250 Matter Stores 300 Matter Capacity 300 Sight Range 16 Robot Scan Range 14 Terrain Scan Density 10 Armor Coverage 600 Evasion (%) 55 Targeting Accuracy 8 Recoil Reduction 2 Item Schematics ----------------- Adv. Treads | -8/Materials | Hacked Robot Schematics ------------------ None Fabricated ------------ Nothing Alien Tech Used ----------------- None Achievements -------------- None Challenges ------------ None Game ------ Seed SmartbombReinforcedTorch Manual? 0 Play Time 01:23:02 Cumulative 125.4 hours Start 2022.06.21 @ 23:07:24 End 2022.08.03 @ 01:12:50 Sessions 5 Manual Loads 0 Difficulty Rogue Special Mode None Game No. 41 Rogue 41 Adventurer 0 Explorer 0 Win Type - Total 0 Types 0/0/0/0/0/0/0/0/0 Lore% 37 Gallery% 55 Achievement% 43 Wizard Run 0 Options --------- ASCII 0 Keyboard 1 Movement Numpad Keybinds 0 Fullscreen 1 Font 18/SmallcapsGlow Map View 76x50 Tactical HUD 1 Map Filters NONE Filters NONE Steam 1 RUN: 00e881f2-1139-4995-a36c-bd54e5bff2a5